[Event "Late-Titled-Tuesday-Blitz-April-23-2024"]
[Site "Chess.com"]
[Date "2024.04.23"]
[Round "10"]
[White "contrerasfiorella"]
[Black "Kostukov_Alex"]
[Result "1/2-1/2"]
[WhiteElo "2243"]
[BlackElo "2359"]
[TimeControl "180+1"]
[EndTime "15:57:42 PDT"]
[Termination "Game drawn by repetition"]

1. e4 {[%clk 0:03:00.9]} 1... c5 {[%clk 0:02:58.2]} 2. Nc3 {[%clk 0:03:00.4]}
2... g6 {[%clk 0:02:58.1]} 3. g3 {[%clk 0:03:00.5]} 3... Bg7 {[%clk 0:02:58.4]}
4. Bg2 {[%clk 0:03:01.1]} 4... Nc6 {[%clk 0:02:58.9]} 5. d3 {[%clk 0:03:01.7]}
5... d6 {[%clk 0:02:59.4]} 6. Nge2 {[%clk 0:03:01.9]} 6... e5 {[%clk 0:02:59.8]}
7. Nd5 {[%clk 0:03:00.7]} 7... h6 {[%clk 0:02:56.4]} 8. h4 {[%clk 0:02:56.3]}
8... Nge7 {[%clk 0:02:56]} 9. h5 {[%clk 0:02:50.1]} 9... g5 {[%clk 0:02:51.9]}
10. Ne3 {[%clk 0:02:40.4]} 10... Nd4 {[%clk 0:02:45.2]} 11. g4 {[%clk
0:02:29.6]} 11... O-O {[%clk 0:02:36.6]} 12. Ng3 {[%clk 0:02:26.7]} 12... Ne6
{[%clk 0:02:33.9]} 13. Nef5 {[%clk 0:02:24.1]} 13... Nf4 {[%clk 0:02:32.9]} 14.
O-O {[%clk 0:02:12.4]} 14... Nxf5 {[%clk 0:02:17.3]} 15. Nxf5 {[%clk 0:02:08.1]}
15... Bxf5 {[%clk 0:02:11.8]} 16. gxf5 {[%clk 0:02:01.7]} 16... Nxg2 {[%clk
0:02:02.3]} 17. Kxg2 {[%clk 0:02:02.6]} 17... d5 {[%clk 0:02:02.6]} 18. Qf3
{[%clk 0:01:56.3]} 18... d4 {[%clk 0:01:58.4]} 19. b3 {[%clk 0:01:44.3]} 19...
Bf6 {[%clk 0:01:56.9]} 20. a4 {[%clk 0:01:44.4]} 20... b6 {[%clk 0:01:55.3]} 21.
Bd2 {[%clk 0:01:43.4]} 21... Qc7 {[%clk 0:01:54.2]} 22. Qg4 {[%clk 0:01:42.2]}
22... Kh7 {[%clk 0:01:52.6]} 23. Ra2 {[%clk 0:01:26.8]} 23... a6 {[%clk
0:01:52.5]} 24. Rfa1 {[%clk 0:01:26.3]} 24... Qc6 {[%clk 0:01:51.9]} 25. Qd1
{[%clk 0:01:23.6]} 25... b5 {[%clk 0:01:43.9]} 26. axb5 {[%clk 0:01:22.5]} 26...
axb5 {[%clk 0:01:44.8]} 27. Ra5 {[%clk 0:01:18.2]} 27... Rxa5 {[%clk 0:01:33.5]}
28. Rxa5 {[%clk 0:01:19.1]} 28... Ra8 {[%clk 0:01:28.4]} 29. Qa1 {[%clk
0:01:18]} 29... Rxa5 {[%clk 0:01:28]} 30. Qxa5 {[%clk 0:01:18.9]} 30... c4
{[%clk 0:01:26.8]} 31. bxc4 {[%clk 0:01:17.5]} 31... bxc4 {[%clk 0:01:27.1]} 32.
Qa7 {[%clk 0:01:15.7]} 32... Kg7 {[%clk 0:01:25.3]} 33. Bb4 {[%clk 0:01:15]}
33... cxd3 {[%clk 0:01:22.8]} 34. cxd3 {[%clk 0:01:15.9]} 34... Qb5 {[%clk
0:01:05.8]} 35. Qa3 {[%clk 0:01:10.5]} 35... g4 {[%clk 0:00:59.7]} 36. Kg3
{[%clk 0:01:06.2]} 36... Qc6 {[%clk 0:00:52.4]} 37. Qb2 {[%clk 0:00:56.8]} 37...
Bg5 {[%clk 0:00:46.3]} 38. Kxg4 {[%clk 0:00:46.2]} 38... Qf6 {[%clk 0:00:41.9]}
39. Bd2 {[%clk 0:00:40.4]} 39... Kh7 {[%clk 0:00:37.6]} 40. Qc1 {[%clk 0:00:39]}
40... Bxd2 {[%clk 0:00:33.6]} 41. Qxd2 {[%clk 0:00:39.9]} 41... Qg7+ {[%clk
0:00:33.9]} 42. Kh3 {[%clk 0:00:35.7]} 42... Qg1 {[%clk 0:00:32.3]} 43. Qe2
{[%clk 0:00:36.3]} 43... Qh1+ {[%clk 0:00:30.8]} 44. Kg3 {[%clk 0:00:36.2]}
44... Kg7 {[%clk 0:00:28.5]} 45. Qg4+ {[%clk 0:00:33.2]} 45... Kh7 {[%clk
0:00:24.2]} 46. f6 {[%clk 0:00:32.2]} 46... Qg1+ {[%clk 0:00:22.7]} 47. Kf3
{[%clk 0:00:29.4]} 47... Qd1+ {[%clk 0:00:20.2]} 48. Kg3 {[%clk 0:00:29.8]}
48... Qg1+ {[%clk 0:00:19.6]} 49. Kh3 {[%clk 0:00:26.1]} 49... Qh1+ {[%clk
0:00:17.6]} 50. Kg3 {[%clk 0:00:26.4]} 50... Qg1+ {[%clk 0:00:17.1]} 1/2-1/2

[Event "Late-Titled-Tuesday-Blitz-April-23-2024"]
[Site "Chess.com"]
[Date "2024.04.23"]
[Round "10"]
[White "rasmussvane"]
[Black "LiemLe"]
[Result "0-1"]
[WhiteElo "2952"]
[BlackElo "3068"]
[TimeControl "180+1"]
[EndTime "15:57:45 PDT"]
[Termination "LiemLe won on time"]

1. Nf3 {[%clk 0:03:00.9]} 1... d5 {[%clk 0:02:59.9]} 2. g3 {[%clk 0:03:00.1]}
2... g6 {[%clk 0:02:59.5]} 3. Bg2 {[%clk 0:02:59.6]} 3... Bg7 {[%clk 0:03:00.1]}
4. d4 {[%clk 0:02:59.9]} 4... Nf6 {[%clk 0:03:00.3]} 5. O-O {[%clk 0:03:00.2]}
5... O-O {[%clk 0:03:01]} 6. c4 {[%clk 0:03:00.8]} 6... c6 {[%clk 0:03:00.9]} 7.
Qb3 {[%clk 0:03:01.1]} 7... a5 {[%clk 0:02:56.5]} 8. Rd1 {[%clk 0:03:00.9]} 8...
a4 {[%clk 0:02:54.7]} 9. Qb4 {[%clk 0:03:01.3]} 9... Qa5 {[%clk 0:02:25]} 10.
Qxa5 {[%clk 0:02:58.8]} 10... Rxa5 {[%clk 0:02:25.9]} 11. Bf4 {[%clk 0:02:59.1]}
11... Nbd7 {[%clk 0:02:21.8]} 12. cxd5 {[%clk 0:02:54.8]} 12... Nxd5 {[%clk
0:02:17.3]} 13. Bd2 {[%clk 0:02:40.3]} 13... Rb5 {[%clk 0:02:11.1]} 14. Nc3
{[%clk 0:02:38.7]} 14... Rxb2 {[%clk 0:02:09.2]} 15. Nxa4 {[%clk 0:02:38.4]}
15... Rb5 {[%clk 0:01:55]} 16. e3 {[%clk 0:02:23.5]} 16... N7b6 {[%clk
0:01:32.6]} 17. Nxb6 {[%clk 0:02:05.5]} 17... Rxb6 {[%clk 0:01:32.1]} 18. Rdb1
{[%clk 0:01:57.7]} 18... Rxb1+ {[%clk 0:01:18.2]} 19. Rxb1 {[%clk 0:01:58.6]}
19... b5 {[%clk 0:01:18.5]} 20. e4 {[%clk 0:01:44.5]} 20... Nb6 {[%clk
0:01:18.1]} 21. Bb4 {[%clk 0:01:42.3]} 21... Be6 {[%clk 0:00:48.5]} 22. a3
{[%clk 0:01:34.5]} 22... Bc4 {[%clk 0:00:41]} 23. Bc5 {[%clk 0:00:45.6]} 23...
Na4 {[%clk 0:00:40.7]} 24. Bxe7 {[%clk 0:00:43.8]} 24... Re8 {[%clk 0:00:41]}
25. Bb4 {[%clk 0:00:43.9]} 25... Rxe4 {[%clk 0:00:34.5]} 26. Ne5 {[%clk
0:00:31]} 26... Rxd4 {[%clk 0:00:28.5]} 27. Nxc6 {[%clk 0:00:31.3]} 27... Rd3
{[%clk 0:00:25.1]} 28. Re1 {[%clk 0:00:30.2]} 28... h5 {[%clk 0:00:19.8]} 29. h4
{[%clk 0:00:24.5]} 29... Bc3 {[%clk 0:00:19.8]} 30. Re8+ {[%clk 0:00:23.3]}
30... Kh7 {[%clk 0:00:20]} 31. Ne5 {[%clk 0:00:16]} 31... Rd1+ {[%clk
0:00:20.1]} 32. Kh2 {[%clk 0:00:16.2]} 32... Re1 {[%clk 0:00:20.3]} 33. Bxc3
{[%clk 0:00:12.4]} 33... Nxc3 {[%clk 0:00:21.2]} 34. Bc6 {[%clk 0:00:09.7]}
34... Nd1 {[%clk 0:00:12.8]} 35. Kg2 {[%clk 0:00:07.1]} 35... Re2 {[%clk
0:00:12.2]} 36. Nxc4 {[%clk 0:00:04.1]} 36... Rxf2+ {[%clk 0:00:12.6]} 37. Kg1
{[%clk 0:00:04.4]} 37... bxc4 {[%clk 0:00:12]} 38. Ba4 {[%clk 0:00:03.3]} 38...
Rd2 {[%clk 0:00:12.2]} 39. Rc8 {[%clk 0:00:02.8]} 39... Ne3 {[%clk 0:00:09.4]}
0-1

[Event "Late-Titled-Tuesday-Blitz-April-23-2024"]
[Site "Chess.com"]
[Date "2024.04.23"]
[Round "10"]
[White "pooh2012"]
[Black "Bala-Afiada"]
[Result "1-0"]
[WhiteElo "2599"]
[BlackElo "1990"]
[TimeControl "180+1"]
[EndTime "15:57:46 PDT"]
[Termination "pooh2012 won on time"]

1. d4 {[%clk 0:02:56.6]} 1... Nf6 {[%clk 0:02:57.2]} 2. c4 {[%clk 0:02:55.2]}
2... e6 {[%clk 0:02:57.3]} 3. Nc3 {[%clk 0:02:55]} 3... d5 {[%clk 0:02:57.7]} 4.
cxd5 {[%clk 0:02:52.8]} 4... exd5 {[%clk 0:02:57.6]} 5. Bg5 {[%clk 0:02:50.3]}
5... Be7 {[%clk 0:02:57.3]} 6. Qc2 {[%clk 0:02:49.3]} 6... c6 {[%clk 0:02:57.2]}
7. e3 {[%clk 0:02:48.4]} 7... O-O {[%clk 0:02:57.3]} 8. Bd3 {[%clk 0:02:48.2]}
8... h6 {[%clk 0:02:57.9]} 9. Bf4 {[%clk 0:02:48]} 9... Bd6 {[%clk 0:02:54.8]}
10. Bg3 {[%clk 0:02:44.4]} 10... Bxg3 {[%clk 0:02:52.6]} 11. hxg3 {[%clk
0:02:43.8]} 11... Re8 {[%clk 0:02:52]} 12. Nge2 {[%clk 0:02:40.5]} 12... Bg4
{[%clk 0:02:44.5]} 13. O-O {[%clk 0:02:37.7]} 13... Nbd7 {[%clk 0:02:42.3]} 14.
b4 {[%clk 0:02:33.1]} 14... Bxe2 {[%clk 0:02:40.5]} 15. Nxe2 {[%clk 0:02:31.1]}
15... Ne4 {[%clk 0:02:39]} 16. a4 {[%clk 0:02:25.6]} 16... Qg5 {[%clk
0:02:28.9]} 17. Rac1 {[%clk 0:02:08.8]} 17... Ndf6 {[%clk 0:02:00.3]} 18. b5
{[%clk 0:01:57.2]} 18... Rac8 {[%clk 0:01:52.5]} 19. Nf4 {[%clk 0:01:47.9]}
19... Nxg3 {[%clk 0:01:30.5]} 20. fxg3 {[%clk 0:01:45.2]} 20... Qxg3 {[%clk
0:01:16.7]} 21. Rf3 {[%clk 0:01:27.3]} 21... Qg5 {[%clk 0:01:03.2]} 22. Qb1
{[%clk 0:01:03.9]} 22... Ng4 {[%clk 0:00:57.7]} 23. bxc6 {[%clk 0:01:00.4]}
23... bxc6 {[%clk 0:00:33.8]} 24. Nh3 {[%clk 0:00:35.4]} 24... Qh4 {[%clk
0:00:24.8]} 25. Bf5 {[%clk 0:00:31.4]} 25... Rb8 {[%clk 0:00:12.6]} 26. Qd3
{[%clk 0:00:31.4]} 26... Nf6 {[%clk 0:00:08.8]} 27. Rxc6 {[%clk 0:00:20.9]}
27... Rb2 {[%clk 0:00:06.5]} 28. Rc2 {[%clk 0:00:16.8]} 28... Rb1+ {[%clk
0:00:06]} 29. Rf1 {[%clk 0:00:11.4]} 29... Rxf1+ {[%clk 0:00:05.1]} 30. Qxf1
{[%clk 0:00:11.9]} 30... Rb8 {[%clk 0:00:04.4]} 31. Rc7 {[%clk 0:00:08.3]} 31...
Qg3 {[%clk 0:00:03.1]} 32. Qf4 {[%clk 0:00:07.4]} 32... Qe1+ {[%clk 0:00:02.1]}
33. Kh2 {[%clk 0:00:07.2]} 33... Rb1 {[%clk 0:00:02.8]} 34. Rc8+ {[%clk
0:00:05.7]} 34... Ne8 {[%clk 0:00:01.7]} 35. Rd8 {[%clk 0:00:05.7]} 1-0

[Event "Late-Titled-Tuesday-Blitz-April-23-2024"]
[Site "Chess.com"]
[Date "2024.04.23"]
[Round "10"]
[White "jcibarra"]
[Black "Sokoloco"]
[Result "0-1"]
[WhiteElo "2973"]
[BlackElo "2798"]
[TimeControl "180+1"]
[EndTime "15:57:54 PDT"]
[Termination "Sokoloco won on time"]

1. e4 {[%clk 0:03:00.9]} 1... d6 {[%clk 0:03:00.6]} 2. d4 {[%clk 0:03:00.9]}
2... g6 {[%clk 0:03:00.4]} 3. Nf3 {[%clk 0:03:00]} 3... Bg7 {[%clk 0:03:01]} 4.
Bc4 {[%clk 0:03:00.7]} 4... e6 {[%clk 0:03:01.1]} 5. Bb3 {[%clk 0:03:00.4]} 5...
Nf6 {[%clk 0:03:00.2]} 6. Qe2 {[%clk 0:02:59.6]} 6... O-O {[%clk 0:02:59.6]} 7.
e5 {[%clk 0:03:00.2]} 7... Nfd7 {[%clk 0:02:54.6]} 8. Bg5 {[%clk 0:02:58.5]}
8... Qe8 {[%clk 0:02:55.1]} 9. Nc3 {[%clk 0:02:58.2]} 9... dxe5 {[%clk
0:02:47.3]} 10. dxe5 {[%clk 0:02:58.6]} 10... a6 {[%clk 0:02:36]} 11. O-O-O
{[%clk 0:02:52]} 11... Nc6 {[%clk 0:02:35.9]} 12. Bf4 {[%clk 0:02:51.9]} 12...
b5 {[%clk 0:02:11.1]} 13. h4 {[%clk 0:02:48.6]} 13... h6 {[%clk 0:01:57.2]} 14.
Qe3 {[%clk 0:02:45.1]} 14... h5 {[%clk 0:01:38.8]} 15. Rhg1 {[%clk 0:01:28.9]}
15... Ne7 {[%clk 0:01:27.7]} 16. g4 {[%clk 0:01:19.5]} 16... hxg4 {[%clk
0:01:28.6]} 17. Rxg4 {[%clk 0:01:19.8]} 17... Nf5 {[%clk 0:01:29.5]} 18. Qe2
{[%clk 0:01:11.3]} 18... Bb7 {[%clk 0:01:18.6]} 19. h5 {[%clk 0:01:06.2]} 19...
c5 {[%clk 0:00:56.4]} 20. hxg6 {[%clk 0:00:30.4]} 20... fxg6 {[%clk 0:00:56.8]}
21. Rdg1 {[%clk 0:00:26.7]} 21... c4 {[%clk 0:00:44.5]} 22. Bxc4 {[%clk
0:00:26.7]} 22... bxc4 {[%clk 0:00:41.9]} 23. Rxg6 {[%clk 0:00:27.3]} 23... Rf7
{[%clk 0:00:29.6]} 24. Ng5 {[%clk 0:00:26.3]} 24... Re7 {[%clk 0:00:30.1]} 25.
Qh5 {[%clk 0:00:24.4]} 25... Nf8 {[%clk 0:00:24.2]} 26. Nge4 {[%clk 0:00:10.8]}
26... Bxe4 {[%clk 0:00:21.4]} 27. Nxe4 {[%clk 0:00:10]} 27... Nxg6 {[%clk
0:00:22.1]} 28. Rxg6 {[%clk 0:00:10.4]} 28... Kf8 {[%clk 0:00:22.4]} 29. Bg5
{[%clk 0:00:09.7]} 29... Rd7 {[%clk 0:00:16.5]} 30. Bf6 {[%clk 0:00:09.9]} 30...
Rad8 {[%clk 0:00:12]} 31. Nd6 {[%clk 0:00:09.5]} 31... Nxd6 {[%clk 0:00:04.9]}
32. Bxg7+ {[%clk 0:00:09.5]} 32... Rxg7 {[%clk 0:00:04.7]} 33. Qh8+ {[%clk
0:00:10.1]} 33... Ke7 {[%clk 0:00:04.7]} 34. exd6+ {[%clk 0:00:09.5]} 34... Kxd6
{[%clk 0:00:02.8]} 35. Qxg7 {[%clk 0:00:08.2]} 35... Kc6 {[%clk 0:00:03.2]} 36.
Rg4 {[%clk 0:00:05.8]} 36... Qd7 {[%clk 0:00:03.4]} 37. Rxc4+ {[%clk 0:00:04.8]}
37... Kb5 {[%clk 0:00:04]} 38. b3 {[%clk 0:00:05.5]} 38... Qxg7 {[%clk
0:00:03.8]} 39. a4+ {[%clk 0:00:04.6]} 39... Kb6 {[%clk 0:00:03.9]} 0-1

[Event "Late-Titled-Tuesday-Blitz-April-23-2024"]
[Site "Chess.com"]
[Date "2024.04.23"]
[Round "10"]
[White "dasatcu90"]
[Black "KorolDimitriy75"]
[Result "0-1"]
[WhiteElo "2203"]
[BlackElo "2353"]
[TimeControl "180+1"]
[EndTime "15:57:54 PDT"]
[Termination "KorolDimitriy75 won on time"]

1. d4 {[%clk 0:03:00.9]} 1... Nf6 {[%clk 0:02:59.8]} 2. Nf3 {[%clk 0:03:00.9]}
2... g6 {[%clk 0:02:59.8]} 3. c4 {[%clk 0:02:59.6]} 3... c5 {[%clk 0:03:00]} 4.
Nc3 {[%clk 0:02:59.2]} 4... cxd4 {[%clk 0:03:00]} 5. Nxd4 {[%clk 0:03:00.1]}
5... Nc6 {[%clk 0:03:00.6]} 6. e4 {[%clk 0:03:00]} 6... Bg7 {[%clk 0:03:00.2]}
7. Be3 {[%clk 0:02:59.6]} 7... O-O {[%clk 0:03:00.3]} 8. Be2 {[%clk 0:02:58.7]}
8... d6 {[%clk 0:03:00.7]} 9. O-O {[%clk 0:02:58.1]} 9... Bd7 {[%clk 0:03:01.1]}
10. Rc1 {[%clk 0:02:56.1]} 10... Nxd4 {[%clk 0:03:00.5]} 11. Bxd4 {[%clk
0:02:56]} 11... Bc6 {[%clk 0:03:00.9]} 12. f3 {[%clk 0:02:51.7]} 12... a5 {[%clk
0:03:00.9]} 13. Qd2 {[%clk 0:02:33.7]} 13... Nd7 {[%clk 0:03:01.2]} 14. Be3
{[%clk 0:02:32.9]} 14... Nc5 {[%clk 0:03:00.9]} 15. Rfd1 {[%clk 0:02:26.8]}
15... Qb6 {[%clk 0:03:00.7]} 16. b3 {[%clk 0:02:09.7]} 16... Rfc8 {[%clk
0:02:59.2]} 17. Nd5 {[%clk 0:02:04.4]} 17... Bxd5 {[%clk 0:02:58.7]} 18. exd5
{[%clk 0:01:54.4]} 18... Qb4 {[%clk 0:02:44.5]} 19. Bf1 {[%clk 0:01:43.6]} 19...
Bf6 {[%clk 0:01:56]} 20. Qf2 {[%clk 0:01:31.3]} 20... a4 {[%clk 0:01:08.3]} 21.
Bd2 {[%clk 0:01:15.9]} 21... Qa3 {[%clk 0:01:07.1]} 22. b4 {[%clk 0:01:10.9]}
22... Na6 {[%clk 0:01:06.7]} 23. b5 {[%clk 0:00:21.4]} 23... Nb4 {[%clk
0:01:03.4]} 24. Bxb4 {[%clk 0:00:20.1]} 24... Qxb4 {[%clk 0:01:03.4]} 25. Qd2
{[%clk 0:00:15.4]} 25... Qxd2 {[%clk 0:01:01.1]} 26. Rxd2 {[%clk 0:00:16.3]}
26... Bg5 {[%clk 0:01:00.9]} 27. Rcd1 {[%clk 0:00:16.7]} 27... Bxd2 {[%clk
0:01:00.7]} 28. Rxd2 {[%clk 0:00:17.6]} 28... a3 {[%clk 0:00:51.2]} 29. Kf2
{[%clk 0:00:17.8]} 29... Ra4 {[%clk 0:00:46]} 30. Ke3 {[%clk 0:00:16.2]} 30...
Rb4 {[%clk 0:00:45.2]} 31. Kd4 {[%clk 0:00:14.3]} 31... Rb1 {[%clk 0:00:41.4]}
32. Bd3 {[%clk 0:00:12.9]} 32... Rc1 {[%clk 0:00:38.4]} 33. Be2 {[%clk
0:00:12.5]} 33... b6 {[%clk 0:00:34.9]} 34. Bd3 {[%clk 0:00:12.5]} 34... Kg7
{[%clk 0:00:34.2]} 35. h3 {[%clk 0:00:11.6]} 35... h5 {[%clk 0:00:33.8]} 36. f4
{[%clk 0:00:10.2]} 36... h4 {[%clk 0:00:33.3]} 37. Be2 {[%clk 0:00:10.3]} 37...
Kf6 {[%clk 0:00:33]} 38. Bd3 {[%clk 0:00:10.6]} 38... e6 {[%clk 0:00:32.3]} 39.
dxe6 {[%clk 0:00:10.1]} 39... fxe6 {[%clk 0:00:32.6]} 40. Rf2 {[%clk 0:00:07.2]}
40... Rc5 {[%clk 0:00:32.2]} 41. Be2 {[%clk 0:00:03.8]} 41... d5 {[%clk
0:00:31.8]} 42. cxd5 {[%clk 0:00:01.7]} 42... Rxd5+ {[%clk 0:00:32.3]} 43. Ke3
{[%clk 0:00:01.9]} 43... Rc3+ {[%clk 0:00:25.7]} 44. Ke4 {[%clk 0:00:02.4]}
44... Rc2 {[%clk 0:00:26.1]} 45. Ke3 {[%clk 0:00:02.7]} 45... Rdd2 {[%clk
0:00:25.7]} 46. f5 {[%clk 0:00:01.1]} 46... gxf5 {[%clk 0:00:25.2]} 0-1

[Event "Late-Titled-Tuesday-Blitz-April-23-2024"]
[Site "Chess.com"]
[Date "2024.04.23"]
[Round "10"]
[White "GMKrikor"]
[Black "LikeWater"]
[Result "1-0"]
[WhiteElo "2879"]
[BlackElo "2661"]
[TimeControl "180+1"]
[EndTime "15:58:02 PDT"]
[Termination "GMKrikor won on time"]

1. Nf3 {[%clk 0:03:00.9]} 1... Nf6 {[%clk 0:02:57]} 2. c4 {[%clk 0:02:58.3]}
2... g6 {[%clk 0:02:57.9]} 3. Nc3 {[%clk 0:02:57.9]} 3... Bg7 {[%clk 0:02:58.8]}
4. e4 {[%clk 0:02:58.2]} 4... O-O {[%clk 0:02:59.7]} 5. d4 {[%clk 0:02:58.5]}
5... d6 {[%clk 0:02:59.8]} 6. h3 {[%clk 0:02:59]} 6... a5 {[%clk 0:02:54.4]} 7.
Bd3 {[%clk 0:02:45.3]} 7... Nc6 {[%clk 0:02:51.4]} 8. d5 {[%clk 0:02:44.5]} 8...
Nb4 {[%clk 0:02:51.4]} 9. Bb1 {[%clk 0:02:43.5]} 9... c6 {[%clk 0:02:51.4]} 10.
O-O {[%clk 0:02:43.2]} 10... Nd7 {[%clk 0:02:50.3]} 11. Re1 {[%clk 0:02:37.6]}
11... Nc5 {[%clk 0:02:48.5]} 12. a3 {[%clk 0:02:34.4]} 12... Nba6 {[%clk
0:02:44.9]} 13. Bc2 {[%clk 0:02:14.9]} 13... e6 {[%clk 0:02:37.5]} 14. Rb1
{[%clk 0:02:07.8]} 14... Bxc3 {[%clk 0:01:45.2]} 15. bxc3 {[%clk 0:02:04.8]}
15... e5 {[%clk 0:01:46.1]} 16. Bh6 {[%clk 0:01:56.8]} 16... Re8 {[%clk
0:01:34.2]} 17. Qd2 {[%clk 0:01:56.6]} 17... Qe7 {[%clk 0:01:28.1]} 18. Red1
{[%clk 0:01:48.9]} 18... Rd8 {[%clk 0:01:28.1]} 19. Be3 {[%clk 0:01:36.9]} 19...
a4 {[%clk 0:01:26.1]} 20. Nh2 {[%clk 0:01:24.6]} 20... f6 {[%clk 0:00:38.1]} 21.
Nf1 {[%clk 0:01:23.2]} 21... Qf7 {[%clk 0:00:35.9]} 22. Ng3 {[%clk 0:01:21]}
22... f5 {[%clk 0:00:35.6]} 23. exf5 {[%clk 0:01:17.7]} 23... Bxf5 {[%clk
0:00:34]} 24. Nxf5 {[%clk 0:01:00.4]} 24... gxf5 {[%clk 0:00:34.9]} 25. f4
{[%clk 0:01:01]} 25... e4 {[%clk 0:00:31.2]} 26. Bd4 {[%clk 0:01:00.3]} 26... h5
{[%clk 0:00:31.2]} 27. Qe3 {[%clk 0:00:58.9]} 27... Kh7 {[%clk 0:00:31]} 28. Kh2
{[%clk 0:00:55.5]} 28... Rg8 {[%clk 0:00:30.6]} 29. g3 {[%clk 0:00:55.4]} 29...
h4 {[%clk 0:00:19]} 30. gxh4 {[%clk 0:00:48.9]} 30... Qh5 {[%clk 0:00:18.6]} 31.
Rg1 {[%clk 0:00:48]} 31... Qxh4 {[%clk 0:00:17.1]} 32. Rbf1 {[%clk 0:00:23.3]}
32... Raf8 {[%clk 0:00:13.7]} 33. Rg5 {[%clk 0:00:19]} 33... Rxg5 {[%clk
0:00:09.6]} 34. fxg5 {[%clk 0:00:19.9]} 34... Kg6 {[%clk 0:00:08.7]} 35. Bf6
{[%clk 0:00:18.6]} 35... Rf7 {[%clk 0:00:05.9]} 36. dxc6 {[%clk 0:00:11.9]}
36... bxc6 {[%clk 0:00:04.5]} 37. Qd4 {[%clk 0:00:12.6]} 37... Rh7 {[%clk
0:00:03.2]} 38. Qe3 {[%clk 0:00:09.9]} 38... Ne6 {[%clk 0:00:02.9]} 39. Rxf5
{[%clk 0:00:03.3]} 39... Kxf5 {[%clk 0:00:02.1]} 40. Qf3+ {[%clk 0:00:03.9]} 1-0

[Event "Late-Titled-Tuesday-Blitz-April-23-2024"]
[Site "Chess.com"]
[Date "2024.04.23"]
[Round "10"]
[White "karinachess1"]
[Black "sassassasss"]
[Result "1-0"]
[WhiteElo "2586"]
[BlackElo "2436"]
[TimeControl "180+1"]
[EndTime "15:58:02 PDT"]
[Termination "karinachess1 won by resignation"]

1. d4 {[%clk 0:03:00.9]} 1... Nc6 {[%clk 0:02:59.5]} 2. d5 {[%clk 0:03:00.4]}
2... Ne5 {[%clk 0:02:59.4]} 3. e4 {[%clk 0:02:49.6]} 3... Ng6 {[%clk 0:02:58.8]}
4. Nf3 {[%clk 0:02:45.9]} 4... e5 {[%clk 0:02:58.9]} 5. h4 {[%clk 0:02:40.7]}
5... h5 {[%clk 0:02:48.8]} 6. Be2 {[%clk 0:02:40.7]} 6... Bc5 {[%clk 0:02:47.2]}
7. Bg5 {[%clk 0:02:32.8]} 7... f6 {[%clk 0:02:27.5]} 8. Bd2 {[%clk 0:02:32.6]}
8... Nh6 {[%clk 0:02:27.3]} 9. Bxh6 {[%clk 0:02:32.2]} 9... Rxh6 {[%clk
0:02:27]} 10. Nc3 {[%clk 0:02:29.2]} 10... Nf4 {[%clk 0:02:25.9]} 11. g3 {[%clk
0:02:25.3]} 11... Nxe2 {[%clk 0:02:25.3]} 12. Qxe2 {[%clk 0:02:25.8]} 12... d6
{[%clk 0:02:21.6]} 13. Nd2 {[%clk 0:02:26.1]} 13... Bg4 {[%clk 0:02:18]} 14. f3
{[%clk 0:02:26.5]} 14... Bd7 {[%clk 0:02:16.7]} 15. Nb3 {[%clk 0:02:21.3]} 15...
Bb6 {[%clk 0:02:16.7]} 16. O-O-O {[%clk 0:02:21.6]} 16... a6 {[%clk 0:02:14.8]}
17. g4 {[%clk 0:02:18.2]} 17... Qe7 {[%clk 0:02:10.1]} 18. Qg2 {[%clk
0:02:07.1]} 18... hxg4 {[%clk 0:02:08.2]} 19. fxg4 {[%clk 0:02:07.2]} 19...
O-O-O {[%clk 0:02:07.6]} 20. h5 {[%clk 0:01:58.6]} 20... Rdh8 {[%clk 0:01:57.7]}
21. Nd2 {[%clk 0:01:52.6]} 21... Qe8 {[%clk 0:01:45.6]} 22. Rhf1 {[%clk
0:01:34.4]} 22... Kb8 {[%clk 0:01:43.9]} 23. Nc4 {[%clk 0:01:21.6]} 23... Bc5
{[%clk 0:01:35.3]} 24. a3 {[%clk 0:01:16.2]} 24... Qc8 {[%clk 0:01:34.4]} 25. g5
{[%clk 0:01:05.7]} 25... Rxh5 {[%clk 0:01:29.4]} 26. gxf6 {[%clk 0:01:05.1]}
26... gxf6 {[%clk 0:00:58.1]} 27. Rxf6 {[%clk 0:01:05]} 27... Bd4 {[%clk
0:00:53.4]} 28. Ne2 {[%clk 0:00:41.5]} 28... Rh2 {[%clk 0:00:52]} 29. Qf1 {[%clk
0:00:38.9]} 29... Bg4 {[%clk 0:00:39.8]} 30. Nxd4 {[%clk 0:00:27.1]} 30... Bxd1
{[%clk 0:00:39.3]} 31. Ne6 {[%clk 0:00:27.4]} 31... Bxc2 {[%clk 0:00:30.6]} 32.
Qf5 {[%clk 0:00:17.6]} 32... Bb3 {[%clk 0:00:27.7]} 33. Ne3 {[%clk 0:00:15.2]}
33... Rh1+ {[%clk 0:00:26.5]} 34. Kd2 {[%clk 0:00:15.3]} 34... a5 {[%clk
0:00:19.4]} 35. Kc3 {[%clk 0:00:15.1]} 35... a4 {[%clk 0:00:19.6]} 36. Rf7
{[%clk 0:00:11]} 36... Rc1+ {[%clk 0:00:18.3]} 37. Kd2 {[%clk 0:00:11.3]} 37...
Rhh1 {[%clk 0:00:10.5]} 38. Rf8 {[%clk 0:00:10.3]} 38... Rcd1+ {[%clk
0:00:10.5]} 39. Nxd1 {[%clk 0:00:10.3]} 39... Rxd1+ {[%clk 0:00:11.2]} 40. Ke2
{[%clk 0:00:11]} 40... b6 {[%clk 0:00:09.5]} 41. Rxc8+ {[%clk 0:00:10.9]} 41...
Kxc8 {[%clk 0:00:10.4]} 42. Nd4+ {[%clk 0:00:10.6]} 42... Kb7 {[%clk 0:00:10.6]}
43. Nxb3 {[%clk 0:00:11.2]} 43... axb3 {[%clk 0:00:10.8]} 44. Kxd1 {[%clk
0:00:11.3]} 44... b5 {[%clk 0:00:10.8]} 45. Qd7 {[%clk 0:00:11.1]} 45... Kb6
{[%clk 0:00:11.7]} 46. Qc6+ {[%clk 0:00:11.3]} 1-0